fUST/lending_fUST_20250611
["ID","MTS","AMOUNT","RATE_DAILY","PERIOD"]
[365328069,1749601846008,-160.0,0.00024,7]
[365328071,1749601846017,-160.0,0.00024,3]
[365328073,1749601846027,-160.0,0.00024,7]
[365328075,1749601846036,-364.9974737,0.00024,2]
[365328077,1749601846045,-160.0,0.00024,3]
[365328079,1749601846055,-160.0,0.00024,7]
[365328081,1749601846064,-842.5625,0.00024,3]
[365328083,1749601846074,-2459.52304013,0.00024072,10]
[365328086,1749601846084,-151.0,0.000241,6]
[365328088,1749601846093,-400.0,0.00024109,4]
[365328089,1749601846104,-777.78,0.00024109,4]
[365328092,1749601846114,-1279.38,0.00024109,4]
[365328093,1749601846123,-460.0,0.00024109,4]
[365328096,1749601846133,-561.82,0.00024109,4]
[365328097,1749601846142,-471.87,0.00024109,4]
[365328100,1749601846152,-187.8,0.00024109,4]
[365328101,1749601846162,-1754.9,0.00024109,4]
[365328103,1749601846171,-795.12,0.00024109,4]
[365328105,1749601846180,-460.0,0.00024109,4]
[365328107,1749601846189,-1154.14,0.00024109,4]
[365328109,1749601846199,-608.56,0.00024109,4]
[365328111,1749601846208,-843.33,0.00024109,4]
[365328114,1749601846218,-2182.91,0.00024109,4]
[365328116,1749601846228,-770.48,0.00024109,4]
[365328118,1749601846237,-1610.56,0.00024109,4]
[365328120,1749601846246,-980.87,0.00024109,4]
[365328122,1749601846255,-232.96296548,0.00024109,4]
[365328124,1749601846264,-460.0,0.00024109,4]
[365328126,1749601846274,-1582.06,0.00024109,4]
[365328128,1749601846283,-801.08,0.00024109,4]
[365328130,1749601846293,-971.12,0.00024109,4]
[365328132,1749601846302,-1965.67,0.00024109,4]
[365328134,1749601846312,-2017.9,0.00024109,4]
[365328136,1749601846321,-644.13,0.00024109,4]
[365328138,1749601846331,-210.2838676,0.0002411,2]
[365328140,1749601846340,-176.8341807,0.0002411,2]
[365328142,1749601846349,-573.3540349,0.0002411,2]
[365328144,1749601846358,-153.0,0.0002411,2]
[365328146,1749601846369,-176.8341807,0.0002411,2]
[365328148,1749601846377,-158.7504224,0.0002411,2]
[365328150,1749601846387,-573.3540349,0.0002411,2]
[365328152,1749601846396,-174.1714265,0.0002411,2]
[365328154,1749601846405,-158.7504224,0.0002411,2]
[365328156,1749601846414,-153.0,0.0002411,2]
[365328158,1749601846424,-573.3540349,0.0002411,2]
[365328160,1749601846434,-158.7504224,0.0002411,2]
[365328162,1749601846443,-573.3540349,0.0002411,2]
[365328164,1749601846452,-157.3008357,0.0002411,2]
[365328166,1749601846461,-153.0,0.0002411,2]
[365328168,1749601846470,-573.3540349,0.0002411,2]
[365328170,1749601846479,-573.3540349,0.0002411,2]
[365328172,1749601846488,-573.3540349,0.0002411,2]
[365328174,1749601846497,-153.0,0.0002411,2]
[365328176,1749601846510,-570.1720743,0.0002411,2]
[365328179,1749601846525,-153.0,0.0002411,2]
[365328182,1749601846539,-158.3791089,0.0002411,2]
[365328184,1749601846553,-176.8341807,0.0002411,2]
[365328186,1749601846565,-158.7504224,0.0002411,2]
[365328189,1749601846579,-158.7504224,0.0002411,2]
[365328191,1749601846593,-176.8341807,0.0002411,2]
[365328193,1749601846606,-153.0,0.0002411,2]
[365328196,1749601846619,-158.7504224,0.0002411,2]
[365328198,1749601846633,-153.0,0.0002411,2]
[365328201,1749601846647,-176.8341807,0.0002411,2]
[365328203,1749601846660,-573.3540349,0.0002411,2]
[365328205,1749601846673,-158.7504224,0.0002411,2]
[365328208,1749601846685,-573.3540349,0.0002411,2]
[365328210,1749601846698,-176.8341807,0.0002411,2]
[365328213,1749601846712,-573.3540349,0.0002411,2]
[365328215,1749601846724,-153.0,0.0002411,2]
[365328217,1749601846735,-153.0,0.0002411,2]
[365328219,1749601846748,-158.7504224,0.0002411,2]
[365328222,1749601846763,-176.8341807,0.0002411,2]
[365328224,1749601846776,-573.3540349,0.0002411,2]
[365328227,1749601846789,-176.8341807,0.0002411,2]
[365328229,1749601846803,-158.7504224,0.0002411,2]
[365328232,1749601846818,-158.7504224,0.0002411,2]
[365328234,1749601846832,-176.8341807,0.0002411,2]
[365328236,1749601846847,-573.3540349,0.0002411,2]
[365328239,1749601846859,-153.0,0.0002411,2]
[365328241,1749601846870,-153.0,0.0002411,2]
[365328243,1749601846884,-158.7504224,0.0002411,2]
[365328245,1749601846900,-573.3540349,0.0002411,2]
[365328246,1749601846914,-176.8341807,0.0002411,2]
[365328247,1749601846927,-153.0,0.0002411,2]
[365328248,1749601846940,-158.7504224,0.0002411,2]
[365328249,1749601846954,-573.3540349,0.0002411,2]
[365328250,1749601846967,-176.8341807,0.0002411,2]
[365328251,1749601846979,-153.0,0.0002411,2]
[365328252,1749601846990,-158.7504224,0.0002411,2]
[365328253,1749601847002,-573.3540349,0.0002411,2]
[365328254,1749601847015,-153.0,0.0002411,2]
[365328255,1749601847027,-312.5513002,0.0002411,2]
[365328256,1749601847039,-573.3540349,0.0002411,2]
[365328257,1749601847053,-573.3540349,0.0002411,2]
[365328259,1749601847065,-153.0,0.0002411,2]
[365328261,1749601847077,-176.8341807,0.00024137,2]
[365328263,1749601847088,-1179.235199,0.00024157,3]
[365328265,1749601847100,-2459.52304013,0.00024176,10]
[365328267,1749601847111,-424.12530924,0.0002418,10]
[365328269,1749601847124,-834.9046531,0.0002418,10]
[365328271,1749601847136,-151.0,0.000242,9]
[365328274,1749601847149,-151.0,0.000242,7]
[365328276,1749601847160,-152.498407,0.00024242,7]
[365328278,1749601847172,-5000.0,0.00024243,2]
[365328280,1749601847184,-49027.53482789,0.00024255,2]
[365328283,1749601847195,-151.0,0.00024255,7]
[365328285,1749601847207,-693.685656,0.00024255,7]
[365328287,1749601847218,-693.685656,0.00024255,7]
[365328290,1749601847232,-2459.52304013,0.00024279,10]
[365328292,1749601847244,-11858.11761888,0.0002428,10]
[365328294,1749601847255,-160.0,0.0002428,10]
[365328296,1749601847267,-229.6792923,0.0002428,10]
[365328298,1749601847279,-1000.0,0.00024281,2]
[365328301,1749601847290,-1000.0,0.00024281,2]
[365328303,1749601847301,-500.0,0.00024352,2]
[365328305,1749601847313,-2459.52304013,0.00024383,11]
[365328308,1749601847325,-144.10527586,0.00024383,4]
[365328338,1749601847626,-255.89472414,0.00024383,4]
[365328340,1749601847635,-151.0,0.00024383,7]
[365328342,1749601847646,-151.0,0.00024383,7]
[365328344,1749601847656,-777.78,0.00024383,4]
[365328346,1749601847665,-1279.38,0.00024383,4]
[365328348,1749601847674,-460.0,0.00024383,4]
[365328350,1749601847684,-290.545719,0.00024383,7]
[365328352,1749601847693,-290.545719,0.00024383,7]
[365328354,1749601847703,-561.82,0.00024383,4]
[365328356,1749601847713,-471.87,0.00024383,4]
[365328358,1749601847722,-1729.64445305,0.00024383,4]
[365328369,1749601847833,-360.0,0.00021095,4]
[365328371,1749601847842,-460.0,0.00021095,4]
[365328373,1749601847852,-250.0,0.00021369,4]
[365328375,1749601847861,-411.51,0.00021369,4]
[365328377,1749601847872,-25.25554695,0.00024383,4]
[365328379,1749601847881,-795.12,0.00024383,4]
[365328381,1749601847891,-460.0,0.00024383,4]
[365328383,1749601847900,-1154.14,0.00024383,4]
[365328384,1749601847910,-151.0,0.00024383,7]
[365328386,1749601847919,-608.56,0.00024383,4]
[365328388,1749601847929,-843.33,0.00024383,4]
[365328390,1749601847939,-151.0,0.00024383,7]
[365328392,1749601847949,-2182.91,0.00024383,4]
[365328394,1749601847958,-770.48,0.00024383,4]
[365328396,1749601847967,-1610.56,0.00024383,4]
[365328398,1749601847976,-980.87,0.00024383,4]
[365328400,1749601847986,-554.5872955,0.00024383,4]
[365328402,1749601847996,-1582.06,0.00024383,4]
[365328404,1749601848005,-801.08,0.00024383,4]
[365328406,1749601848015,-971.12,0.00024383,4]
[365328408,1749601848025,-1965.67,0.00024383,4]
[365328410,1749601848035,-2017.9,0.00024383,4]
[365328412,1749601848044,-644.13,0.00024383,4]
[365328414,1749601848054,-1931.37,0.000244,7]
[365328416,1749601848065,-68361.7,0.000244,7]
[365328418,1749601848074,-2105.50120483,0.000244,7]
[365328567,1749602408577,262.583617,0.00013699,2]
[365328586,1749602610134,555.0,0.00024658,120]
[365328587,1749602620552,555.0,0.00024658,120]
[365328589,1749602688295,591.28,0.00024658,120]
[365328701,1749603031870,-355.86895647,0.00019292,2]
[365328830,1749603037720,-298.94077667,0.00019292,2]
[365330602,1749603358470,4735.0,0.00018,2]
[365330604,1749603443023,260.367668,0.00013699,2]
[365330605,1749603542650,-1385.34375617,0.00024658,120]
[365330606,1749603542771,-200.0,0.00024748,120]
[365330607,1749603542792,-200.0,0.0002476,120]
[365330608,1749603542814,-2722.65624383,0.000248,120]
[365330676,1749604110249,221.38,0.00018,2]
[365330742,1749604232119,-160.0,0.00018206,2]
[365330744,1749604232128,-527.61,0.00018816,2]
[365330746,1749604232138,-5164.06141033,0.00019031,2]
[365330748,1749604232147,-500.0,0.00019238,2]
[365330750,1749604232158,-295.74335596,0.00019238,2]
[365330751,1749604232167,-300.0,0.00019252,2]
[365330753,1749604232177,-1200.0,0.00019252,2]
[365330755,1749604232186,-11074.4900231,0.00019253,2]
[365330757,1749604232195,-316.0,0.00019292,2]
[365330759,1749604232205,-181.522119,0.00019512,2]
[365330762,1749604232214,-1055.22,0.00019712,2]
[365330764,1749604232223,-3435.30154762,0.00019968,2]
[365330766,1749604232232,-700.0,0.00019968,2]
[365330768,1749604232241,-300.0,0.00019977,2]
[365330771,1749604232251,-1686.5551888,0.00020084,2]
[365330773,1749604232260,-260.367668,0.00020187,2]
[365330776,1749604232269,-185.724,0.00020473,2]
[365330780,1749604232279,-1582.83,0.00020608,2]
[365330783,1749604232288,-260.95645425,0.00020964,2]
[365330785,1749604232297,-420.0,0.00020979,2]
[365330789,1749604232307,-931.53872564,0.00020993,2]
[365330792,1749604232317,-2078.8246154,0.00020995,2]
[365330795,1749604232325,-700.0,0.00021064,2]
[365330797,1749604232335,-223.35908659,0.00021073,2]
[365330800,1749604232344,-500.0,0.00021073,2]
[365330803,1749604232354,-500.0,0.00021073,2]
[365330806,1749604232363,-500.0,0.00021073,2]
[365330809,1749604232373,-208974.18344,0.00021084,2]
[365330812,1749604232382,-1562.07,0.00021085,3]
[365330815,1749604232393,-781.04,0.00021085,3]
[365330816,1749604232402,-390.52,0.00021085,3]
[365330817,1749604232412,-195.26,0.00021085,3]
[365330818,1749604232421,-585.79,0.00021085,3]
[365330819,1749604232430,-292.83291929,0.00021093,2]
[365330820,1749604232439,-167.61938942,0.00021093,2]
[365330821,1749604232449,-385.01081239,0.00021093,2]
[365330822,1749604232457,-475.0,0.00021093,2]
[365330823,1749604232467,-500.0,0.00021094,2]
[365330824,1749604232478,-305.36,0.00021094,2]
[365330825,1749604232487,-358.14577533,0.00021095,4]
[365330826,1749604232497,-420.0,0.00021095,4]
[365330827,1749604232506,-460.0,0.00021095,4]
[365330828,1749604232517,-500.0,0.00021095,4]
[365330829,1749604232526,-439.84941882,0.00021095,4]
[365330830,1749604232536,-355.48928372,0.00021095,4]
[365330831,1749604232545,-460.0,0.00021095,4]
[365330832,1749604232554,-460.0,0.00021095,4]
[365330833,1749604232564,-460.0,0.00021095,4]
[365330834,1749604232573,-430.0,0.00021095,4]
[365330835,1749604232583,-460.0,0.00021095,4]
[365330836,1749604232593,-460.0,0.00021095,4]
[365330837,1749604232603,-460.0,0.00021095,4]
[365330838,1749604232613,-430.0,0.00021095,4]
[365330839,1749604232622,-430.0,0.00021095,4]
[365330840,1749604232641,-430.0,0.00021095,4]
[365330841,1749604232652,-414.60086281,0.00021095,4]
[365330843,1749604232662,-430.0,0.00021095,4]
[365330845,1749604232672,-430.0,0.00021095,4]
[365330847,1749604232683,-483.51507084,0.00021095,4]
[365330849,1749604232693,-342.92169423,0.00021095,4]
[365330851,1749604232703,-430.0,0.00021095,4]
[365330853,1749604232712,-390.42739517,0.00021095,4]
[365330855,1749604232722,-425.09329993,0.00021095,4]
[365330857,1749604232732,-504.98298771,0.00021095,4]
[365330859,1749604232742,-430.0,0.00021095,4]
[365330861,1749604232752,-430.0,0.00021095,4]
[365330863,1749604232762,-460.0,0.00021095,4]
[365330866,1749604232772,-430.0,0.00021095,4]
[365330868,1749604232782,-500.0,0.00021095,4]
[365330870,1749604232792,-430.0,0.00021095,4]
[365330872,1749604232801,-460.0,0.00021095,4]
[365330874,1749604232810,-430.0,0.00021095,4]
[365330876,1749604232820,-460.0,0.00021095,4]
[365330878,1749604232829,-430.0,0.00021095,4]
[365330880,1749604232839,-460.0,0.00021095,4]
[365330882,1749604232848,-453.83857874,0.00021095,4]
[365330884,1749604232858,-430.0,0.00021095,4]
[365330886,1749604232867,-430.0,0.00021095,4]
[365330887,1749604232877,-460.0,0.00021095,4]
[365330889,1749604232886,-430.0,0.00021095,4]
[365330891,1749604232897,-430.0,0.00021095,4]
[365330893,1749604232907,-431.40154279,0.00021095,4]
[365330895,1749604232916,-430.0,0.00021095,4]
[365330897,1749604232926,-431.11679343,0.00021095,4]
[365330899,1749604232936,-460.0,0.00021095,4]
[365330901,1749604232946,-430.0,0.00021095,4]
[365330903,1749604232957,-460.0,0.00021095,4]
[365330905,1749604232967,-430.0,0.00021095,4]
[365330907,1749604232976,-460.0,0.00021095,4]
[365330909,1749604232985,-460.0,0.00021095,4]
[365330911,1749604232995,-430.0,0.00021095,4]
[365330913,1749604233005,-460.0,0.00021095,4]
[365330915,1749604233014,-430.0,0.00021095,4]
[365330916,1749604233023,-430.0,0.00021095,4]
[365330918,1749604233033,-350.0,0.00021095,4]
[365330920,1749604233044,-460.0,0.00021095,4]
[365330922,1749604233053,-460.0,0.00021095,4]
[365330924,1749604233064,-420.22,0.00021095,4]
[365330926,1749604233074,-460.0,0.00021095,4]
[365330928,1749604233083,-370.0,0.00021095,4]
[365330930,1749604233093,-320.0,0.00021095,4]
[365330932,1749604233103,-460.0,0.00021095,4]
[365330934,1749604233112,-460.0,0.00021095,4]
[365330936,1749604233122,-460.0,0.00021095,4]
[365330938,1749604233132,-460.0,0.00021095,4]
[365330940,1749604233141,-460.0,0.00021095,4]
[365330942,1749604233151,-403.16637919,0.00021095,4]
[365330944,1749604233160,-460.0,0.00021095,4]
[365330946,1749604233170,-322.1032523,0.00021095,4]
[365330948,1749604233180,-470.0,0.00021095,4]
[365330950,1749604233189,-460.0,0.00021095,4]
[365330952,1749604233199,-460.0,0.00021095,4]
[365330954,1749604233208,-420.0,0.00021095,4]
[365330956,1749604233218,-460.0,0.00021095,4]
[365330958,1749604233228,-460.0,0.00021095,4]
[365330960,1749604233237,-470.0,0.00021095,4]
[365330962,1749604233247,-430.0,0.00021095,4]
[365330964,1749604233257,-460.0,0.00021095,4]
[365330966,1749604233268,-305.01551178,0.00021095,4]
[365330968,1749604233277,-435.48034986,0.00021095,4]
[365330970,1749604233287,-403.91097545,0.00021095,4]
[365330972,1749604233297,-460.0,0.00021095,4]
[365330974,1749604233307,-217.18781882,0.00021095,4]
[365330975,1749604233317,-430.0,0.00021095,4]
[365330976,1749604233330,-460.0,0.00021095,4]
[365330977,1749604233341,-542.46820532,0.00021095,4]
[365330979,1749604233356,-460.0,0.00021095,4]
[365330982,1749604233367,-460.0,0.00021095,4]
[365330983,1749604233377,-460.0,0.00021095,4]
[365330985,1749604233387,-460.0,0.00021095,4]
[365330987,1749604233398,-354.40250561,0.00021095,4]
[365330989,1749604233408,-530.0,0.00021095,4]
[365330991,1749604233418,-440.0,0.00021095,4]
[365330993,1749604233428,-430.0,0.00021095,4]
[365330995,1749604233438,-460.0,0.00021095,4]
[365330997,1749604233448,-420.0,0.00021095,4]
[365330999,1749604233457,-470.0,0.00021095,4]
[365331001,1749604233468,-460.0,0.00021095,4]
[365331003,1749604233478,-460.0,0.00021095,4]
[365331005,1749604233487,-460.0,0.00021095,4]
[365331007,1749604233497,-460.0,0.00021095,4]
[365331009,1749604233507,-460.0,0.00021095,4]
[365331011,1749604233519,-460.0,0.00021095,4]
[365331013,1749604233529,-525.44552356,0.00021095,4]
[365331015,1749604233539,-500.0,0.00021095,4]
[365331017,1749604233549,-500.0,0.00021095,4]
[365331019,1749604233559,-500.0,0.00021095,4]
[365331021,1749604233569,-500.0,0.00021095,4]
[365331023,1749604233579,-500.0,0.00021095,4]
[365331025,1749604233589,-438.04630413,0.00021095,4]
[365331027,1749604233600,-460.0,0.00021095,4]
[365331029,1749604233611,-460.0,0.00021095,4]
[365331031,1749604233621,-460.0,0.00021095,4]
[365331033,1749604233631,-460.0,0.00021095,4]
[365331034,1749604233641,-440.0,0.00021095,4]
[365331036,1749604233652,-460.0,0.00021095,4]
[365331038,1749604233662,-460.0,0.00021095,4]
[365331040,1749604233674,-460.0,0.00021095,4]
[365331042,1749604233685,-460.0,0.00021095,4]
[365331044,1749604233696,-460.0,0.00021095,4]
[365331046,1749604233707,-460.0,0.00021095,4]
[365331048,1749604233717,-500.0,0.00021095,4]
[365331050,1749604233726,-460.0,0.00021095,4]
[365331052,1749604233736,-500.0,0.00021095,4]
[365331054,1749604233746,-497.49,0.00021095,4]
[365331056,1749604233757,-460.0,0.00021095,4]
[365331058,1749604233767,-460.0,0.00021095,4]
[365331060,1749604233778,-460.0,0.00021095,4]
[365331062,1749604233788,-460.0,0.00021095,4]
[365331064,1749604233798,-460.0,0.00021095,4]
[365331066,1749604233808,-460.0,0.00021095,4]
[365331068,1749604233818,-460.0,0.00021095,4]
[365331070,1749604233828,-460.0,0.00021095,4]
[365331072,1749604233839,-460.0,0.00021095,4]
[365331074,1749604233849,-430.0,0.00021095,4]
[365331076,1749604233859,-420.0,0.00021095,4]
[365331078,1749604233868,-282.71,0.00021095,4]
[365331080,1749604233878,-384.1548375,0.00021095,4]
[365331082,1749604233887,-420.0,0.00021095,4]
[365331084,1749604233898,-460.0,0.00021095,4]
[365331086,1749604233907,-460.0,0.00021095,4]
[365331088,1749604233917,-289.2384521,0.00021095,4]
[365331090,1749604233927,-460.0,0.00021095,4]
[365331092,1749604233936,-420.0,0.00021095,4]
[365331094,1749604233946,-402.54833888,0.00021095,4]
[365331096,1749604233956,-450.0,0.00021095,4]
[365331098,1749604233966,-420.0,0.00021095,4]
[365331100,1749604233975,-420.0,0.00021095,4]
[365331102,1749604233985,-460.0,0.00021095,4]
[365331104,1749604233994,-440.0,0.00021095,4]
[365331106,1749604234003,-404.0858259,0.00021095,4]
[365331108,1749604234013,-401.6623163,0.00021095,4]
[365331110,1749604234023,-460.0,0.00021095,4]
[365331112,1749604234032,-255.22130763,0.00021095,4]
[365331114,1749604234042,-430.0,0.00021095,4]
[365331116,1749604234051,-460.0,0.00021095,4]
[365331118,1749604234061,-431.9115172,0.00021095,4]
[365331120,1749604234070,-1316.41,0.00021095,4]
[365331122,1749604234080,-460.0,0.00021095,4]
[365331124,1749604234090,-460.0,0.00021095,4]
[365331126,1749604234099,-460.0,0.00021095,4]
[365331128,1749604234109,-460.0,0.00021095,4]
[365331130,1749604234119,-430.0,0.00021095,4]
[365331132,1749604234129,-460.0,0.00021095,4]
[365331134,1749604234139,-460.0,0.00021095,4]
[365331136,1749604234150,-460.0,0.00021095,4]
[365331138,1749604234160,-546.88939389,0.00021095,4]
[365331140,1749604234170,-405.68561956,0.00021095,4]
[365331142,1749604234181,-460.0,0.00021095,4]
[365331144,1749604234191,-460.0,0.00021095,4]
[365331146,1749604234201,-151.0,0.00021095,4]
[365331148,1749604234211,-402.67606541,0.00021095,4]
[365331150,1749604234221,-500.0,0.00021095,4]
[365331152,1749604234231,-430.0,0.00021095,4]
[365331154,1749604234241,-151.0,0.00021095,4]
[365331156,1749604234251,-306.56813409,0.00021095,4]
[365331158,1749604234262,-430.0,0.00021095,4]
[365331160,1749604234271,-430.0,0.00021095,4]
[365331162,1749604234282,-460.0,0.00021095,4]
[365331164,1749604234292,-460.0,0.00021095,4]
[365331166,1749604234301,-421.09409967,0.00021095,4]
[365331168,1749604234311,-460.0,0.00021095,4]
[365331170,1749604234321,-460.0,0.00021095,4]
[365331172,1749604234331,-460.0,0.00021095,4]
[365331174,1749604234341,-460.0,0.00021095,4]
[365331176,1749604234351,-460.0,0.00021095,4]
[365331177,1749604234361,-460.0,0.00021095,4]
[365331178,1749604234491,-500.0,0.00021095,4]
[365331179,1749604234501,-619.13658445,0.00021095,4]
[365331180,1749604234512,-522.20678966,0.00021095,4]
[365331181,1749604234525,-460.0,0.00021095,4]
[365331182,1749604234535,-460.0,0.00021095,4]
[365331183,1749604234545,-460.0,0.00021095,4]
[365331184,1749604234555,-460.0,0.00021095,4]
[365331185,1749604234566,-3287.54,0.00021095,4]
[365331186,1749604234576,-500.0,0.00021095,4]
[365331187,1749604234586,-500.0,0.00021095,4]
[365331189,1749604234598,-500.0,0.00021095,4]
[365331191,1749604234608,-500.0,0.00021095,4]
[365331193,1749604234617,-577.7851599,0.00021095,4]
[365331195,1749604234628,-460.0,0.00021095,4]
[365331197,1749604234638,-460.0,0.00021095,4]
[365331199,1749604234649,-460.0,0.00021095,4]
[365331201,1749604234659,-430.0,0.00021095,4]
[365331203,1749604234669,-460.0,0.00021095,4]
[365331205,1749604234679,-450.0,0.00021095,4]
[365331207,1749604234689,-460.0,0.00021095,4]
[365331209,1749604234698,-460.0,0.00021095,4]
[365331211,1749604234708,-430.0,0.00021095,4]
[365331213,1749604234717,-460.0,0.00021095,4]
[365331215,1749604234727,-853.23,0.00021095,4]
[365331217,1749604234736,-460.0,0.00021095,4]
[365331219,1749604234746,-430.0,0.00021095,4]
[365331221,1749604234755,-1506.51,0.00021095,4]
[365331223,1749604234764,-460.0,0.00021095,4]
[365331225,1749604234774,-430.0,0.00021095,4]
[365331227,1749604234784,-400.0,0.00021095,4]
[365331229,1749604234794,-460.0,0.00021095,4]
[365331231,1749604234803,-450.70483438,0.00021095,4]
[365331233,1749604234812,-431.75763091,0.00021095,4]
[365331235,1749604234821,-460.0,0.00021095,4]
[365331236,1749604234831,-354.97,0.00021095,4]
[365331238,1749604234840,-460.0,0.00021095,4]
[365331240,1749604234850,-460.0,0.00021095,4]
[365331242,1749604234860,-460.0,0.00021095,4]
[365331244,1749604234869,-430.0,0.00021095,4]
[365331246,1749604234879,-430.0,0.00021095,4]
[365331249,1749604234889,-360.0,0.00021095,4]
[365331251,1749604234900,-699.19,0.00021095,4]
[365331253,1749604234910,-420.0,0.00021095,4]
[365331255,1749604234919,-420.0,0.00021095,4]
[365331257,1749604234928,-578.08,0.00021095,4]
[365331259,1749604234938,-440.0,0.00021095,4]
[365331261,1749604234947,-440.0,0.00021095,4]
[365331263,1749604234956,-460.0,0.00021095,4]
[365331265,1749604234965,-460.0,0.00021095,4]
[365331267,1749604234974,-430.0,0.00021095,4]
[365331269,1749604234982,-460.0,0.00021095,4]
[365331271,1749604234992,-378.95621755,0.00021095,4]
[365331272,1749604235001,-460.0,0.00021095,4]
[365331274,1749604235010,-450.0,0.00021095,4]
[365331276,1749604235019,-460.0,0.00021095,4]
[365331278,1749604235028,-401.17977441,0.00021095,4]
[365331280,1749604235037,-460.0,0.00021095,4]
[365331282,1749604235047,-460.0,0.00021095,4]
[365331284,1749604235056,-460.0,0.00021095,4]
[365331286,1749604235065,-460.0,0.00021095,4]
[365331288,1749604235074,-460.0,0.00021095,4]
[365331291,1749604235083,-460.0,0.00021095,4]
[365331292,1749604235093,-460.0,0.00021095,4]
[365331294,1749604235102,-387.39174868,0.00021095,4]
[365331296,1749604235111,-460.0,0.00021095,4]
[365331298,1749604235120,-400.0,0.00021095,4]
[365331300,1749604235129,-460.0,0.00021095,4]
[365331302,1749604235139,-460.0,0.00021095,4]
[365331305,1749604235150,-3493.75,0.00021095,4]
[365331306,1749604235159,-300.0,0.00021095,4]
[365331308,1749604235168,-460.0,0.00021095,4]
[365331310,1749604235177,-460.0,0.00021095,4]
[365331312,1749604235186,-460.0,0.00021095,4]
[365331314,1749604235195,-460.0,0.00021095,4]
[365331316,1749604235204,-634.33,0.00021095,4]
[365331318,1749604235214,-400.34518435,0.00021095,4]
[365331321,1749604235223,-402.64732013,0.00021095,4]
[365331323,1749604235232,-557.24848393,0.00021095,4]
[365331324,1749604235241,-430.0,0.00021095,4]
[365331325,1749604235251,-420.0,0.00021095,4]
[365331326,1749604235260,-757.39,0.00021095,4]
[365331327,1749604235270,-430.0,0.00021095,4]
[365331328,1749604235280,-310.0,0.00021095,4]
[365331329,1749604235289,-430.0,0.00021095,4]
[365331330,1749604235299,-420.0,0.00021095,4]
[365331331,1749604235308,-460.0,0.00021095,4]
[365331332,1749604235318,-1386.6,0.00021095,4]
[365331333,1749604235329,-430.0,0.00021095,4]
[365331334,1749604235344,-236.00965793,0.00021095,4]
[365331335,1749604235353,-430.0,0.00021095,4]
[365331336,1749604235362,-460.0,0.00021095,4]
[365331337,1749604235371,-460.0,0.00021095,4]
[365331338,1749604235380,-1629.77,0.00021095,4]
[365331339,1749604235390,-433.4971624,0.00021095,4]
[365331340,1749604235400,-440.0,0.00021095,4]
[365331341,1749604235409,-195.43486957,0.00021095,4]
[365331342,1749604235418,-460.0,0.00021095,4]
[365331343,1749604235428,-460.0,0.00021095,4]
[365331344,1749604235437,-460.0,0.00021095,4]
[365331345,1749604235446,-430.0,0.00021095,4]
[365331346,1749604235455,-460.0,0.00021095,4]
[365331347,1749604235464,-450.6961855,0.00021095,4]
[365331348,1749604235473,-460.0,0.00021095,4]
[365331349,1749604235483,-460.0,0.00021095,4]
[365331350,1749604235492,-460.0,0.00021095,4]